[Event "Live Chess"]
[Site "Chess.com"]
[Date "2023.05.21"]
[Round "-"]
[White "MJMykh"]
[Black "DoYouLikeCurry"]
[Result "1-0"]
[WhiteElo "1162"]
[BlackElo "1436"]
[TimeControl "300"]
[EndTime "6:31:24 PDT"]
[Termination "MJMykh won by checkmate"]

1. e4 {[%clk 0:04:59]} 1... c6 {[%clk 0:04:58.2]} 2. Nf3 {[%clk 0:04:57.8]} 2...
d5 {[%clk 0:04:57.4]} 3. exd5 {[%clk 0:04:56.5]} 3... cxd5 {[%clk 0:04:56.8]} 4.
Nc3 {[%clk 0:04:56.1]} 4... Nf6 {[%clk 0:04:55.9]} 5. Bb5+ {[%clk 0:04:54.7]}
5... Nc6 {[%clk 0:04:53.6]} 6. Bxc6+ {[%clk 0:04:53.9]} 6... bxc6 {[%clk
0:04:52.4]} 7. O-O {[%clk 0:04:53.6]} 7... g6 {[%clk 0:04:50.9]} 8. h3 {[%clk
0:04:52.7]} 8... Bg7 {[%clk 0:04:50.1]} 9. d4 {[%clk 0:04:51]} 9... e6 {[%clk
0:04:46.7]} 10. Bg5 {[%clk 0:04:49.8]} 10... O-O {[%clk 0:04:45.1]} 11. Ne5
{[%clk 0:04:46.9]} 11... Qb6 {[%clk 0:04:36.3]} 12. Bxf6 {[%clk 0:04:40.1]}
12... Bxf6 {[%clk 0:04:34.5]} 13. Rb1 {[%clk 0:04:37.7]} 13... c5 {[%clk
0:04:32.6]} 14. Nf3 {[%clk 0:04:26.2]} 14... cxd4 {[%clk 0:04:29.5]} 15. Ne2
{[%clk 0:04:22.6]} 15... Ba6 {[%clk 0:04:26.5]} 16. Re1 {[%clk 0:04:19.1]} 16...
Rac8 {[%clk 0:04:23.2]} 17. Nexd4 {[%clk 0:04:08.3]} 17... Bxd4 {[%clk
0:04:14.9]} 18. Nxd4 {[%clk 0:04:06.7]} 18... Rc4 {[%clk 0:04:11.7]} 19. c3
{[%clk 0:04:03.9]} 19... Rfc8 {[%clk 0:04:08.8]} 20. Nc2 {[%clk 0:03:53]} 20...
Bb7 {[%clk 0:03:58.9]} 21. Ne3 {[%clk 0:03:49.4]} 21... R4c5 {[%clk 0:03:56.1]}
22. Nc2 {[%clk 0:03:42.7]} 22... Qc6 {[%clk 0:03:54.8]} 23. Nb4 {[%clk
0:03:40.7]} 23... Qd7 {[%clk 0:03:46.2]} 24. Nd3 {[%clk 0:03:36.9]} 24... Rc4
{[%clk 0:03:41.7]} 25. Ne5 {[%clk 0:03:35.1]} 25... Qc7 {[%clk 0:03:37]} 26.
Nxc4 {[%clk 0:03:32.6]} 26... Qxc4 {[%clk 0:03:36.9]} 27. Qc2 {[%clk 0:03:29.1]}
27... Qc6 {[%clk 0:03:34.6]} 28. f3 {[%clk 0:03:26.5]} 28... Qb6+ {[%clk
0:03:31.6]} 29. Kh2 {[%clk 0:03:24.6]} 29... Qc7+ {[%clk 0:03:30.5]} 30. g3
{[%clk 0:03:21.5]} 30... Qb6 {[%clk 0:03:25.6]} 31. a3 {[%clk 0:03:18.1]} 31...
Ba6 {[%clk 0:03:24]} 32. Red1 {[%clk 0:03:04]} 32... h5 {[%clk 0:03:02.9]} 33.
Qd2 {[%clk 0:02:55.3]} 33... h4 {[%clk 0:02:50.2]} 34. Qd4 {[%clk 0:02:42.1]}
34... Qd6 {[%clk 0:02:43.2]} 35. f4 {[%clk 0:02:36.5]} 35... hxg3+ {[%clk
0:02:39.8]} 36. Kxg3 {[%clk 0:02:33.8]} 36... g5 {[%clk 0:02:33.1]} 37. Kg4
{[%clk 0:02:18.4]} 37... Be2+ {[%clk 0:02:25.5]} 38. Kxg5 {[%clk 0:02:15.7]}
38... Bxd1 {[%clk 0:02:23.8]} 39. Qxd1 {[%clk 0:02:14.3]} 39... Qe7+ {[%clk
0:02:21]} 40. Kg4 {[%clk 0:02:12.5]} 40... f5+ {[%clk 0:02:18.3]} 41. Kg3 {[%clk
0:02:09.5]} 41... Qg7+ {[%clk 0:02:15.2]} 42. Kf3 {[%clk 0:02:08.6]} 42... Rc4
{[%clk 0:02:08]} 43. Qg1 {[%clk 0:02:00.2]} 43... Qxg1 {[%clk 0:02:05.5]} 44.
Rxg1+ {[%clk 0:01:58.6]} 44... Kf7 {[%clk 0:02:05]} 45. h4 {[%clk 0:01:55.6]}
45... Rc8 {[%clk 0:02:03.5]} 46. Ke3 {[%clk 0:01:51.2]} 46... Rh8 {[%clk
0:02:02.2]} 47. Rh1 {[%clk 0:01:49.2]} 47... Kf6 {[%clk 0:01:58.5]} 48. Kd4
{[%clk 0:01:48.3]} 48... Rb8 {[%clk 0:01:49.4]} 49. b4 {[%clk 0:01:46.2]} 49...
Re8 {[%clk 0:01:42]} 50. a4 {[%clk 0:01:41.9]} 50... e5+ {[%clk 0:01:40.4]} 51.
fxe5+ {[%clk 0:01:40.5]} 51... Rxe5 {[%clk 0:01:38.5]} 52. h5 {[%clk 0:01:37.4]}
52... f4 {[%clk 0:01:34.5]} 53. h6 {[%clk 0:01:34.2]} 53... Re8 {[%clk
0:01:32.1]} 54. Kxd5 {[%clk 0:01:31.9]} 54... Rh8 {[%clk 0:01:31.1]} 55. c4
{[%clk 0:01:29.9]} 55... Kg6 {[%clk 0:01:30.3]} 56. Ke4 {[%clk 0:01:28.7]} 56...
Rxh6 {[%clk 0:01:28.5]} 57. Rxh6+ {[%clk 0:01:27.3]} 57... Kxh6 {[%clk 0:01:28]}
58. Kxf4 {[%clk 0:01:27]} 58... Kg7 {[%clk 0:01:27.2]} 59. Ke5 {[%clk
0:01:26.8]} 59... Kf7 {[%clk 0:01:26.8]} 60. Kd6 {[%clk 0:01:26.4]} 60... Ke8
{[%clk 0:01:26.1]} 61. Kc7 {[%clk 0:01:25.9]} 61... Ke7 {[%clk 0:01:25.4]} 62.
Kb7 {[%clk 0:01:25.8]} 62... Kd6 {[%clk 0:01:24.8]} 63. Kxa7 {[%clk 0:01:25.6]}
63... Kc6 {[%clk 0:01:24.2]} 64. b5+ {[%clk 0:01:24.9]} 64... Kc5 {[%clk
0:01:23.4]} 65. b6 {[%clk 0:01:24.4]} 65... Kxc4 {[%clk 0:01:22.4]} 66. b7
{[%clk 0:01:23.7]} 66... Kb4 {[%clk 0:01:22]} 67. b8=Q+ {[%clk 0:01:22.3]} 67...
Kxa4 {[%clk 0:01:21.9]} 68. Qb6 {[%clk 0:01:17.3]} 68... Ka3 {[%clk 0:01:21.2]}
69. Qb5 {[%clk 0:01:16.4]} 69... Ka2 {[%clk 0:01:20.7]} 70. Qb4 {[%clk 0:01:16]}
70... Ka1 {[%clk 0:01:20.6]} 71. Ka6 {[%clk 0:01:13.5]} 71... Ka2 {[%clk
0:01:20.5]} 72. Ka5 {[%clk 0:01:13.1]} 72... Ka1 {[%clk 0:01:20.4]} 73. Ka4
{[%clk 0:01:12.6]} 73... Ka2 {[%clk 0:01:20.3]} 74. Kb5 {[%clk 0:01:08.1]} 74...
Ka1 {[%clk 0:01:20.2]} 75. Kc4 {[%clk 0:01:07.1]} 75... Ka2 {[%clk 0:01:20.1]}
76. Kc3 {[%clk 0:01:06.2]} 76... Ka1 {[%clk 0:01:20]} 77. Kc2 {[%clk 0:01:05.3]}
77... Ka2 {[%clk 0:01:19.9]} 78. Qb2# {[%clk 0:01:04.2]} 1-0

[Event "Live Chess"]
[Site "Chess.com"]
[Date "2023.05.21"]
[Round "-"]
[White "LiamBellwood"]
[Black "SupremeTactician"]
[Result "0-1"]
[WhiteElo "1906"]
[BlackElo "2231"]
[TimeControl "300"]
[EndTime "6:31:25 PDT"]
[Termination "SupremeTactician won by resignation"]

1. d3 {[%clk 0:04:57.7]} 1... d5 {[%clk 0:04:57.9]} 2. Nd2 {[%clk 0:04:56.7]}
2... c5 {[%clk 0:04:55.4]} 3. e4 {[%clk 0:04:56.6]} 3... d4 {[%clk 0:04:53.2]}
4. g3 {[%clk 0:04:55.5]} 4... Nc6 {[%clk 0:04:52]} 5. Bg2 {[%clk 0:04:54.3]}
5... g6 {[%clk 0:04:51.3]} 6. f4 {[%clk 0:04:52.2]} 6... Bg7 {[%clk 0:04:50.3]}
7. Ngf3 {[%clk 0:04:51.3]} 7... e6 {[%clk 0:04:49.3]} 8. O-O {[%clk 0:04:49.8]}
8... Nge7 {[%clk 0:04:48.9]} 9. Nc4 {[%clk 0:04:48.3]} 9... b6 {[%clk
0:04:46.9]} 10. e5 {[%clk 0:04:46.8]} 10... O-O {[%clk 0:04:43.5]} 11. a4 {[%clk
0:04:40.5]} 11... Ba6 {[%clk 0:04:37.2]} 12. Nd6 {[%clk 0:04:35.5]} 12... Nf5
{[%clk 0:04:34.3]} 13. Nxf5 {[%clk 0:04:27.9]} 13... exf5 {[%clk 0:04:32.3]} 14.
b3 {[%clk 0:04:22]} 14... Rc8 {[%clk 0:04:30.2]} 15. Nd2 {[%clk 0:04:18.3]}
15... Bb7 {[%clk 0:04:27.5]} 16. Nc4 {[%clk 0:04:12.5]} 16... Ba8 {[%clk
0:04:22.9]} 17. Nd6 {[%clk 0:04:06.2]} 17... Rb8 {[%clk 0:04:18.8]} 18. Bd2
{[%clk 0:03:43.5]} 18... Ne7 {[%clk 0:04:07.7]} 19. Bxa8 {[%clk 0:03:32.9]}
19... Rxa8 {[%clk 0:04:07.6]} 20. a5 {[%clk 0:03:32.3]} 20... Nd5 {[%clk
0:03:45.7]} 21. Re1 {[%clk 0:03:24]} 21... Qd7 {[%clk 0:03:40.3]} 22. Qf3 {[%clk
0:03:15.4]} 22... Qc6 {[%clk 0:03:34.9]} 23. Qxd5 {[%clk 0:03:13]} 23... Qxd5
{[%clk 0:03:32.5]} 0-1

[Event "Live Chess"]
[Site "Chess.com"]
[Date "2023.05.21"]
[Round "-"]
[White "ShanthamGrarks"]
[Black "JoRoSaR"]
[Result "1-0"]
[WhiteElo "1968"]
[BlackElo "1686"]
[TimeControl "300"]
[EndTime "6:31:34 PDT"]
[Termination "ShanthamGrarks won by resignation"]

1. d4 {[%clk 0:04:57.6]} 1... f5 {[%clk 0:04:58.6]} 2. Nc3 {[%clk 0:04:57.5]}
2... Nf6 {[%clk 0:04:56.7]} 3. e4 {[%clk 0:04:57]} 3... fxe4 {[%clk 0:04:55.7]}
4. f3 {[%clk 0:04:56.5]} 4... exf3 {[%clk 0:04:54.7]} 5. Nxf3 {[%clk 0:04:55.7]}
5... e6 {[%clk 0:04:53.5]} 6. Bg5 {[%clk 0:04:53.8]} 6... Be7 {[%clk 0:04:53]}
7. Bd3 {[%clk 0:04:49.8]} 7... O-O {[%clk 0:04:50.6]} 8. O-O {[%clk 0:04:49.3]}
8... d5 {[%clk 0:04:49.4]} 9. Qe1 {[%clk 0:04:45.9]} 9... Qe8 {[%clk 0:04:48.7]}
10. Qh4 {[%clk 0:04:43.6]} 10... h6 {[%clk 0:04:43.8]} 11. Bxh6 {[%clk
0:04:40.2]} 11... gxh6 {[%clk 0:04:43]} 12. Qxh6 {[%clk 0:04:38.9]} 12... Rf7
{[%clk 0:04:42.4]} 13. Bg6 {[%clk 0:04:29.4]} 13... Qf8 {[%clk 0:04:40.2]} 14.
Bxf7+ {[%clk 0:04:25.5]} 14... Kxf7 {[%clk 0:04:37.7]} 15. Ne5+ {[%clk
0:04:21.8]} 15... Ke8 {[%clk 0:04:36]} 16. Qg6+ {[%clk 0:04:17.6]} 16... Kd8
{[%clk 0:04:34.1]} 17. Nf7+ {[%clk 0:04:12.7]} 17... Kd7 {[%clk 0:04:33.2]} 18.
Rxf6 {[%clk 0:04:10.6]} 18... Bxf6 {[%clk 0:04:31.4]} 19. Qxf6 {[%clk
0:04:09.7]} 19... Qe7 {[%clk 0:04:30]} 20. Ne5+ {[%clk 0:04:06.9]} 20... Kd8
{[%clk 0:04:26.2]} 21. Qh8+ {[%clk 0:04:05.6]} 21... Qe8 {[%clk 0:04:23.9]} 22.
Qh7 {[%clk 0:03:59.4]} 22... Nc6 {[%clk 0:04:21]} 23. Nf7+ {[%clk 0:03:56.2]}
23... Kd7 {[%clk 0:04:17.5]} 24. Re1 {[%clk 0:03:50.4]} 24... Qe7 {[%clk
0:04:16.4]} 25. Nxd5 {[%clk 0:03:45.3]} 1-0

[Event "Live Chess"]
[Site "Chess.com"]
[Date "2023.05.21"]
[Round "-"]
[White "wadsy27"]
[Black "Ian-Morley"]
[Result "1-0"]
[WhiteElo "2551"]
[BlackElo "1058"]
[TimeControl "300"]
[EndTime "6:31:38 PDT"]
[Termination "wadsy27 won by resignation"]

1. e4 {[%clk 0:04:57.8]} 1... e5 {[%clk 0:04:55.9]} 2. Nf3 {[%clk 0:04:57.2]}
2... Nc6 {[%clk 0:04:54.3]} 3. Bb5 {[%clk 0:04:56.3]} 3... a6 {[%clk 0:04:51.8]}
4. Bxc6 {[%clk 0:04:55.2]} 4... dxc6 {[%clk 0:04:50.9]} 5. d4 {[%clk 0:04:54.9]}
5... exd4 {[%clk 0:04:43.8]} 6. Qxd4 {[%clk 0:04:54.8]} 6... Qxd4 {[%clk
0:04:43]} 7. Nxd4 {[%clk 0:04:54.5]} 7... c5 {[%clk 0:04:40.4]} 8. Nf3 {[%clk
0:04:50.3]} 8... Bg4 {[%clk 0:04:38.6]} 9. Bf4 {[%clk 0:04:45.6]} 9... Bxf3
{[%clk 0:04:37.5]} 10. gxf3 {[%clk 0:04:44.6]} 10... c6 {[%clk 0:04:37]} 11. a4
{[%clk 0:04:39.1]} 11... O-O-O {[%clk 0:04:28.3]} 12. a5 {[%clk 0:04:37.3]}
12... Bd6 {[%clk 0:04:26.4]} 13. Bxd6 {[%clk 0:04:33.2]} 13... Rxd6 {[%clk
0:04:25.3]} 14. Nd2 {[%clk 0:04:32.8]} 14... Nf6 {[%clk 0:04:24.4]} 15. Nc4
{[%clk 0:04:29.1]} 15... Rdd8 {[%clk 0:04:07.2]} 16. Ke2 {[%clk 0:04:25.4]}
16... Kc7 {[%clk 0:04:03.6]} 17. Rad1 {[%clk 0:04:23.8]} 17... Rxd1 {[%clk
0:03:58.1]} 18. Rxd1 {[%clk 0:04:23.7]} 18... Rd8 {[%clk 0:03:57.3]} 19. Rxd8
{[%clk 0:04:22.8]} 19... Kxd8 {[%clk 0:03:56.6]} 20. Nd6 {[%clk 0:04:22.3]}
20... Kc7 {[%clk 0:03:50.7]} 21. Nxf7 {[%clk 0:04:20.7]} 21... b6 {[%clk
0:03:50.1]} 22. axb6+ {[%clk 0:04:18.4]} 22... Kxb6 {[%clk 0:03:49.3]} 23. e5
{[%clk 0:04:17.2]} 23... Nd5 {[%clk 0:03:46]} 24. c4 {[%clk 0:04:16.3]} 24...
Nf4+ {[%clk 0:03:44.7]} 25. Ke3 {[%clk 0:04:15.9]} 25... Ne6 {[%clk 0:03:40]}
26. f4 {[%clk 0:04:15.4]} 26... g6 {[%clk 0:03:38.4]} 27. Ng5 {[%clk 0:04:14.7]}
27... Nxg5 {[%clk 0:03:03.4]} 28. fxg5 {[%clk 0:04:13.8]} 28... Kc7 {[%clk
0:03:03.1]} 29. Ke4 {[%clk 0:04:08.9]} 29... Kd7 {[%clk 0:03:02.3]} 30. f4
{[%clk 0:04:08.1]} 30... Ke6 {[%clk 0:03:01.5]} 31. f5+ {[%clk 0:04:07.4]} 31...
gxf5+ {[%clk 0:03:01]} 32. Kf4 {[%clk 0:04:07.3]} 32... a5 {[%clk 0:02:58.5]}
33. b3 {[%clk 0:04:06.8]} 1-0

[Event "Live Chess"]
[Site "Chess.com"]
[Date "2023.05.21"]
[Round "-"]
[White "smoggyrabbit"]
[Black "seabuck"]
[Result "0-1"]
[WhiteElo "1629"]
[BlackElo "1881"]
[TimeControl "300"]
[EndTime "6:31:42 PDT"]
[Termination "seabuck won on time"]

1. d4 {[%clk 0:04:58.9]} 1... e6 {[%clk 0:04:58.2]} 2. Nf3 {[%clk 0:04:55.9]}
2... Nf6 {[%clk 0:04:56.9]} 3. e3 {[%clk 0:04:55.1]} 3... c5 {[%clk 0:04:55.6]}
4. Bd3 {[%clk 0:04:52.4]} 4... Nc6 {[%clk 0:04:53.5]} 5. O-O {[%clk 0:04:49.9]}
5... Qb6 {[%clk 0:04:50.9]} 6. b3 {[%clk 0:04:44.9]} 6... cxd4 {[%clk
0:04:44.8]} 7. exd4 {[%clk 0:04:21.3]} 7... Nxd4 {[%clk 0:04:40.7]} 8. Bb2
{[%clk 0:04:20.3]} 8... Nxf3+ {[%clk 0:04:29.1]} 9. Qxf3 {[%clk 0:04:19.1]} 9...
Be7 {[%clk 0:04:28]} 10. Nd2 {[%clk 0:04:14.5]} 10... Qc6 {[%clk 0:04:20.9]} 11.
Qxc6 {[%clk 0:04:11.1]} 11... bxc6 {[%clk 0:04:17]} 12. Nc4 {[%clk 0:04:06.9]}
12... O-O {[%clk 0:04:04.6]} 13. Rae1 {[%clk 0:03:40.3]} 13... Ba6 {[%clk
0:03:55.7]} 14. f4 {[%clk 0:03:19.4]} 14... Bxc4 {[%clk 0:03:49.8]} 15. Bxc4
{[%clk 0:03:19.3]} 15... Bc5+ {[%clk 0:03:48]} 16. Kh1 {[%clk 0:03:16.2]} 16...
d5 {[%clk 0:03:46.2]} 17. Bd3 {[%clk 0:03:13.3]} 17... Ng4 {[%clk 0:03:37.8]}
18. Re2 {[%clk 0:03:04.2]} 18... Bb6 {[%clk 0:03:23.6]} 19. Rf3 {[%clk
0:03:00.6]} 19... d4 {[%clk 0:03:07]} 20. Rh3 {[%clk 0:02:44.6]} 20... h6 {[%clk
0:03:01.3]} 21. Rg3 {[%clk 0:02:35.8]} 21... Nf6 {[%clk 0:02:53.4]} 22. c3
{[%clk 0:02:29.6]} 22... Rfd8 {[%clk 0:02:44.2]} 23. cxd4 {[%clk 0:02:20.9]}
23... Bxd4 {[%clk 0:02:42.4]} 24. h3 {[%clk 0:02:06.3]} 24... Bxb2 {[%clk
0:02:35]} 25. Rxb2 {[%clk 0:02:06.2]} 25... Rd4 {[%clk 0:02:32.7]} 26. f5 {[%clk
0:01:51.1]} 26... Rad8 {[%clk 0:02:20.6]} 27. Bb1 {[%clk 0:01:37.8]} 27... e5
{[%clk 0:02:15.3]} 28. Re3 {[%clk 0:01:27.4]} 28... R8d5 {[%clk 0:02:00.4]} 29.
Rbe2 {[%clk 0:01:18.8]} 29... Rd1+ {[%clk 0:01:57.4]} 30. Re1 {[%clk 0:01:17.9]}
30... c5 {[%clk 0:01:38.9]} 31. Rxe5 {[%clk 0:00:54.3]} 31... Rxb1 {[%clk
0:01:31.6]} 32. Rxb1 {[%clk 0:00:50]} 32... Rxe5 {[%clk 0:01:29.9]} 33. g4
{[%clk 0:00:44.8]} 33... Nd5 {[%clk 0:01:25.5]} 34. Rc1 {[%clk 0:00:41.7]} 34...
Nf4 {[%clk 0:01:24.2]} 35. a3 {[%clk 0:00:34.2]} 35... h5 {[%clk 0:01:20]} 36.
b4 {[%clk 0:00:32.5]} 36... cxb4 {[%clk 0:01:14.7]} 37. axb4 {[%clk 0:00:30.9]}
37... hxg4 {[%clk 0:01:13.1]} 38. hxg4 {[%clk 0:00:29.4]} 38... Re4 {[%clk
0:01:04]} 39. b5 {[%clk 0:00:27.2]} 39... Nd5 {[%clk 0:00:56.8]} 40. Rc8+ {[%clk
0:00:22.6]} 40... Kh7 {[%clk 0:00:55.1]} 41. Ra8 {[%clk 0:00:21]} 41... Rb4
{[%clk 0:00:43.7]} 42. Rxa7 {[%clk 0:00:19.3]} 42... f6 {[%clk 0:00:42.4]} 43.
Rb7 {[%clk 0:00:16.2]} 43... Nc3 {[%clk 0:00:36.2]} 44. Rc7 {[%clk 0:00:12.6]}
44... Nxb5 {[%clk 0:00:31.3]} 45. Rc2 {[%clk 0:00:10.1]} 45... Rxg4 {[%clk
0:00:26.8]} 46. Rh2+ {[%clk 0:00:08.9]} 46... Kg8 {[%clk 0:00:25.9]} 47. Rb2
{[%clk 0:00:07.2]} 47... Nd6 {[%clk 0:00:24.2]} 0-1

[Event "Live Chess"]
[Site "Chess.com"]
[Date "2023.05.21"]
[Round "-"]
[White "matt1979"]
[Black "daveeeeR"]
[Result "1-0"]
[WhiteElo "1524"]
[BlackElo "1289"]
[TimeControl "300"]
[EndTime "6:31:42 PDT"]
[Termination "matt1979 won by resignation"]

1. f4 {[%clk 0:04:57.8]} 1... c5 {[%clk 0:04:58.2]} 2. Nf3 {[%clk 0:04:56.2]}
2... Nc6 {[%clk 0:04:58.1]} 3. e3 {[%clk 0:04:53.7]} 3... d6 {[%clk 0:04:56.7]}
4. Bb5 {[%clk 0:04:52.1]} 4... e5 {[%clk 0:04:54.8]} 5. fxe5 {[%clk 0:04:50.1]}
5... dxe5 {[%clk 0:04:51.5]} 6. Nxe5 {[%clk 0:04:44.3]} 6... Bd7 {[%clk
0:04:48.7]} 7. Nxd7 {[%clk 0:04:39.8]} 7... Qxd7 {[%clk 0:04:47.1]} 8. Qf3
{[%clk 0:04:34.7]} 8... Nf6 {[%clk 0:04:33.3]} 9. O-O {[%clk 0:04:29.8]} 9...
Be7 {[%clk 0:04:30.3]} 10. Bxc6 {[%clk 0:04:27.1]} 10... bxc6 {[%clk 0:04:28.8]}
11. Nc3 {[%clk 0:04:21.1]} 11... O-O {[%clk 0:04:26.9]} 12. Ne4 {[%clk
0:04:18.5]} 12... Rab8 {[%clk 0:04:04]} 13. d3 {[%clk 0:04:02.5]} 13... h6
{[%clk 0:03:52.7]} 14. Rd1 {[%clk 0:03:55.2]} 14... Nh7 {[%clk 0:03:42.5]} 15.
Qg3 {[%clk 0:03:47.4]} 15... Ng5 {[%clk 0:03:37.9]} 16. Nxg5 {[%clk 0:03:44.9]}
16... Bxg5 {[%clk 0:03:36.3]} 17. e4 {[%clk 0:03:40.3]} 17... Qd4+ {[%clk
0:03:28.2]} 18. Kh1 {[%clk 0:03:35]} 18... Bxc1 {[%clk 0:03:26.9]} 19. Raxc1
{[%clk 0:03:29.8]} 19... Rxb2 {[%clk 0:03:25.9]} 20. a3 {[%clk 0:03:25.7]} 20...
Ra2 {[%clk 0:03:23.6]} 21. c3 {[%clk 0:03:17.2]} 21... Qd7 {[%clk 0:03:13.4]}
22. Ra1 {[%clk 0:03:12.1]} 22... Rxa1 {[%clk 0:03:11]} 23. Rxa1 {[%clk
0:03:10.8]} 23... Rb8 {[%clk 0:03:08.2]} 24. Qxb8+ {[%clk 0:03:04.6]} 1-0

[Event "Live Chess"]
[Site "Chess.com"]
[Date "2023.05.21"]
[Round "-"]
[White "Biranidun"]
[Black "EdenHazard8"]
[Result "0-1"]
[WhiteElo "2515"]
[BlackElo "1983"]
[TimeControl "300"]
[EndTime "6:31:52 PDT"]
[Termination "EdenHazard8 won by checkmate"]

1. e4 {[%clk 0:04:58.6]} 1... e6 {[%clk 0:04:55.7]} 2. d4 {[%clk 0:04:57.4]}
2... d5 {[%clk 0:04:55.6]} 3. Nc3 {[%clk 0:04:55]} 3... dxe4 {[%clk 0:04:54.5]}
4. Nxe4 {[%clk 0:04:54.1]} 4... Nd7 {[%clk 0:04:54.4]} 5. Nf3 {[%clk 0:04:51.6]}
5... Ngf6 {[%clk 0:04:52.8]} 6. Nxf6+ {[%clk 0:04:46.1]} 6... Nxf6 {[%clk
0:04:52.7]} 7. Bd3 {[%clk 0:04:43.2]} 7... Bd6 {[%clk 0:04:49.2]} 8. Qe2 {[%clk
0:04:38.9]} 8... O-O {[%clk 0:04:47.4]} 9. Bg5 {[%clk 0:04:36.1]} 9... h6 {[%clk
0:04:45.2]} 10. Bh4 {[%clk 0:04:35.2]} 10... b6 {[%clk 0:04:42.8]} 11. O-O-O
{[%clk 0:04:32.4]} 11... Bb7 {[%clk 0:04:41.5]} 12. Rhg1 {[%clk 0:04:24.8]}
12... Be7 {[%clk 0:04:39.8]} 13. Ne5 {[%clk 0:04:14.4]} 13... Nd5 {[%clk
0:04:36.5]} 14. Bg3 {[%clk 0:03:59.4]} 14... Rc8 {[%clk 0:04:23.3]} 15. Qe4
{[%clk 0:03:54.5]} 15... f5 {[%clk 0:04:20.7]} 16. Qe2 {[%clk 0:03:47.9]} 16...
Ba8 {[%clk 0:03:36.4]} 17. f3 {[%clk 0:03:22]} 17... Bg5+ {[%clk 0:03:29.5]} 18.
Kb1 {[%clk 0:03:20.5]} 18... Be3 {[%clk 0:03:25.8]} 19. Rge1 {[%clk 0:03:15.9]}
19... f4 {[%clk 0:03:22.1]} 20. Bf2 {[%clk 0:03:14]} 20... Qd6 {[%clk
0:03:06.2]} 21. Ng4 {[%clk 0:03:09.8]} 21... Qb4 {[%clk 0:03:03.5]} 22. Ka1
{[%clk 0:02:56.1]} 22... c5 {[%clk 0:02:53.1]} 23. Bxe3 {[%clk 0:02:51.7]} 23...
fxe3 {[%clk 0:02:47.8]} 24. dxc5 {[%clk 0:02:49.8]} 24... Rxc5 {[%clk
0:02:44.1]} 25. Nxe3 {[%clk 0:02:47.1]} 25... Ra5 {[%clk 0:02:29.2]} 26. Nc4
{[%clk 0:02:42.3]} 26... Nc3 {[%clk 0:02:04.7]} 27. Qxe6+ {[%clk 0:02:35.1]}
27... Kh8 {[%clk 0:02:02.4]} 28. Nxa5 {[%clk 0:02:19]} 28... Qxa5 {[%clk
0:01:56.4]} 29. Re5 {[%clk 0:01:48.5]} 29... Bd5 {[%clk 0:01:49]} 30. Rxd5
{[%clk 0:01:43.8]} 30... Qxa2# {[%clk 0:01:47.5]} 0-1

[Event "Live Chess"]
[Site "Chess.com"]
[Date "2023.05.21"]
[Round "-"]
[White "SavagePawn7"]
[Black "Tiltador"]
[Result "0-1"]
[WhiteElo "782"]
[BlackElo "841"]
[TimeControl "300"]
[EndTime "6:32:09 PDT"]
[Termination "Tiltador won by resignation"]

1. e4 {[%clk 0:04:57.6]} 1... e5 {[%clk 0:04:58.3]} 2. d4 {[%clk 0:04:55.8]}
2... exd4 {[%clk 0:04:56.1]} 3. c3 {[%clk 0:04:54.2]} 3... dxc3 {[%clk
0:04:54.2]} 4. Bc4 {[%clk 0:04:52.9]} 4... d6 {[%clk 0:04:50.3]} 5. Qb3 {[%clk
0:04:47.6]} 5... Be6 {[%clk 0:04:48.7]} 6. Bxe6 {[%clk 0:04:45]} 6... fxe6
{[%clk 0:04:46.1]} 7. Qxe6+ {[%clk 0:04:42.5]} 7... Qe7 {[%clk 0:04:44.9]} 8.
Qxe7+ {[%clk 0:04:40.1]} 8... Bxe7 {[%clk 0:04:40.4]} 9. Nxc3 {[%clk 0:04:38.5]}
9... Nf6 {[%clk 0:04:39]} 10. Nf3 {[%clk 0:04:35.7]} 10... O-O {[%clk
0:04:37.7]} 11. O-O {[%clk 0:04:33.5]} 11... Nc6 {[%clk 0:04:36.6]} 12. Bg5
{[%clk 0:04:28.4]} 12... Rae8 {[%clk 0:04:30]} 13. Rae1 {[%clk 0:04:15.5]} 13...
Nd7 {[%clk 0:04:28.3]} 14. Bxe7 {[%clk 0:04:11.2]} 14... Nxe7 {[%clk 0:04:24.4]}
15. Nd5 {[%clk 0:04:02.4]} 15... Nxd5 {[%clk 0:04:19.3]} 16. exd5 {[%clk
0:04:01.4]} 16... Rxe1 {[%clk 0:04:16.9]} 17. Rxe1 {[%clk 0:04:00.2]} 17... Nc5
{[%clk 0:04:13.2]} 18. Nd4 {[%clk 0:03:50.8]} 18... Nd3 {[%clk 0:04:11.1]} 19.
Re2 {[%clk 0:03:46.2]} 19... c5 {[%clk 0:03:59]} 20. Ne6 {[%clk 0:03:43]} 20...
Rb8 {[%clk 0:03:50]} 21. Rd2 {[%clk 0:03:17.1]} 21... Nb4 {[%clk 0:03:44.9]} 22.
a3 {[%clk 0:03:14.4]} 22... Na6 {[%clk 0:03:38.1]} 23. h4 {[%clk 0:03:04.7]}
23... b5 {[%clk 0:03:36.7]} 24. g4 {[%clk 0:03:02.6]} 24... b4 {[%clk
0:03:35.3]} 25. axb4 {[%clk 0:02:59.3]} 25... Nxb4 {[%clk 0:03:34]} 26. g5
{[%clk 0:02:54]} 26... g6 {[%clk 0:03:29.7]} 27. f4 {[%clk 0:02:41.1]} 27... c4
{[%clk 0:03:19.1]} 28. Rf2 {[%clk 0:02:34.5]} 28... Nd3 {[%clk 0:03:16.7]} 29.
Rf3 {[%clk 0:02:27.2]} 29... Rxb2 {[%clk 0:03:13.8]} 30. f5 {[%clk 0:02:24]}
30... Rb1+ {[%clk 0:03:08.5]} 31. Kg2 {[%clk 0:02:22.2]} 31... Ne1+ {[%clk
0:03:04.4]} 32. Kf2 {[%clk 0:02:20.2]} 32... Nxf3 {[%clk 0:03:03.4]} 33. Kxf3
{[%clk 0:02:19]} 33... Rb3+ {[%clk 0:03:02.5]} 34. Kg4 {[%clk 0:02:17.2]} 34...
gxf5+ {[%clk 0:03:01.4]} 35. Kxf5 {[%clk 0:02:15.4]} 35... Rf3+ {[%clk
0:02:56.2]} 0-1